Workbook

Sheet AE
A1: COSTO DE PRODUCCIÓN TOTAL Y UNITARIO | I1: GASTO TOTAL Y UNITARIO
B3: Descripción | D3: Cantidad | E3: Costo Unitario | F3: Total | G3: % | J3: Descripción | L3: Cantidad | M3: Costo Unitario | N3: Total | O3: %
A4: 1.- | B4: COSTOS QUE VARIAN SEGÚN LA CANTIDAD A PRODUCIR | F4: =F5+F12 -> 20.64940476 | G4: =F4/F33 -> 0.838432908 | I4: 3.- | J4: GASTOS QUE VARIAN SEGÚN LA CANTIDAD A VENDER | N4: =N5+N12 -> 0 | O4: =N4/N33 -> 0
B5: 1.1 | C5: Materiales | F5: =SUM(F6:F11) -> 16.37857143 | G5: =F5/F33 -> 0.6650232019 | J5: 3.1 | K5: Insumos | N5: =SUM(N6:N11) -> 0 | O5: =N5/N33 -> 0
C6: Fresas - Kilo | D6: 1 | E6: 6 | F6: =D6*E6 -> 6 | N6: =L6*M6 -> 0
C7: Yogurt - Litro | D7: 1 | E7: 7.2 | F7: =D7*E7 -> 7.2 | N7: =L7*M7 -> 0
C8: Azucar - Kilo | D8: 0.5 | E8: 5.5 | F8: 2.75 | N8: 0
C9: Bolsitas - Paquete de 70 unidades | D9: 20 | E9: =1.5/70 -> 0.02142857143 | F9: 0.4285714286 | N9: 0
F10: 0 | N10: 0
F11: 0 | N11: 0
B12: 1.2 | C12: Personal | F12: =SUM(F13:F17) -> 4.270833333 | G12: =F12/F33 -> 0.1734097061 | J12: 3.2 | K12: Personal | N12: =SUM(N13:N17) -> 0 | O12: =N12/N33 -> 0
C13: Fabricante - Horas | D13: 1 | E13: =1025/240 -> 4.270833333 | F13: 4.270833333 | N13: =L13*M13 -> 0
F14: 0 | N14: 0
F15: 0 | N15: 0
F16: 0 | N16: 0
F17: 0 | N17: 0
A19: 2.- | B19: COSTOS FIJOS QUE NO VARIAN SEGÚN LA CANTIDAD A PRODUCIR | F19: =F20+F26 -> 3.979166667 | G19: =F19/F33 -> 0.161567092 | I19: 4.- | J19: GASTOS FIJOS QUE NO VARIAN SEGÚN LA CANTIDAD A VENDER | N19: =N20+N26 -> 2 | O19: =N19/N33 -> 1
B20: 2.1 | C20: Personal | F20: =SUM(F21:F25) -> 0 | G20: =F20/F33 -> 0 | J20: 4.1 | K20: Personal | N20: =SUM(N21:N25) -> 0 | O20: =N20/N33 -> 0
F21: =D21*E21 -> 0 | N21: =L21*M21 -> 0
F22: 0 | N22: 0
F23: 0 | N23: 0
F24: 0 | N24: 0
F25: 0 | N25: 0
B26: 2.2 | C26: Otros | F26: =SUM(F27:F31) -> 3.979166667 | G26: =F26/F33 -> 0.161567092 | J26: 4.2 | K26: Otros | N26: =SUM(N27:N31) -> 2 | O26: =N26/N33 -> 1
C27: Electricidad - Mes | D27: 1 | E27: 1 | F27: 1 | K27: Electricidad - Mes | L27: 1 | M27: 1 | N27: =L27*M27 -> 1
C28: Agua - Mes | D28: 1 | E28: 1 | F28: 1 | K28: Agua - Mes | L28: 1 | M28: 1 | N28: 1
C29: Desgaste licuadora - Mes | D29: 1 | E29: =((150/4)*0.1)/12 -> 0.3125 | F29: 0.3125 | N29: 0
C30: Desgaste refrigeradora - Mes | D30: 1 | E30: =((800/4)*0.1)/12 -> 1.666666667 | F30: 1.666666667 | N30: 0
F31: 0 | N31: 0
C33: COSTO TOTAL DE PRODUCCIÓN | F33: =F19+F4 -> 24.62857143 | G33: 1 | K33: GASTO TOTAL | N33: =N19+N4 -> 2 | O33: 1
C34: UNIDADES PRODUCIDAS | F34: 20 | K34: UNIDADES VENDIDAS | N34: =F34 -> 20
C35: COSTO POR UNIDAD | F35: =IFERROR(F33/F34,0) -> 1.231428571 | K35: GASTO POR UNIDAD | N35: =IFERROR(N33/N34,0) -> 0.1
I38: RESUMEN
A39: ELABORADO POR
A40: WWW.ARCHIVOEXCEL.COM | K40: COSTO POR UNIDAD | N40: =F35 -> 1.231428571 | O40: =N40/N44 -> 0.6152748037
A41: Lima - Perú | K41: GASTO POR UNIDAD | N41: =N35 -> 0.1 | O41: =N41/N44 -> 0.04996431121
A42: Copyright© 2023 | K42: TOTAL COSTO Y GASTO POR UNIDAD | N42: =SUM(N40:N41) -> 1.331428571 | O42: =N42/N44 -> 0.6652391149
A43: ARCHIVO EXCEL E.I.R.L. | K43: GANANCIA | N43: 0.67 | O43: =N43/N44 -> 0.3347608851
K44: PRECIO VENTA PÚBLICO | N44: =SUM(N42:N43) -> 2.001428571 | O44: 1
K46: TOTAL VENTAS | N46: =F34*N44 -> 40.02857143 | O46: 1
K47: TOTAL COSTOS Y GASTOS | N47: =F34*N42 -> 26.62857143 | O47: =N47/N46 -> 0.6652391149
K48: TOTAL GANACIA | N48: =N46-N47 -> 13.4 | O48: =N48/N46 -> 0.3347608851
